bitfinex-derivatives/quotes_SOLF0:USTF0_20260203
["timestamp","ask_amount","ask_price","bid_price","bid_amount"]
[1770147139963,71.93610267,99.6,99.517,35.49258026]
[1770147139964,8.41731867,99.59,99.517,35.49258026]
[1770147140350,71.93610267,99.6,99.523,140.8317]
[1770147140554,71.93610267,99.6,99.517,35.49258026]
[1770147141060,383.6311,99.63,99.52,8.41731867]
[1770147141360,8.636e-05,99.673,99.634,140.6744]
[1770147141558,8.636e-05,99.673,99.645,140.6601]
[1770147141857,8.636e-05,99.673,99.612,9.0453]
[1770147141858,8.636e-05,99.673,99.667,281.2576]
[1770147142363,75.33459123,99.769,99.701,140.5808]
[1770147142755,75.33459124,99.807,99.701,140.5808]
[1770147143056,75.33459124,99.801,99.721,140.552]
[1770147143259,75.33459124,99.786,99.691,140.595]
[1770147143454,75.33459124,99.769,99.691,140.595]
[1770147143755,31.22196921,99.79,99.643,421.9875]
[1770147143756,31.22196921,99.8,99.701,140.581]
[1770147143955,140.4557,99.791,99.692,140.5936]
[1770147144259,75.33459124,99.854,99.738,140.5287]
[1770147144460,75.33459124,99.854,99.758,140.4999]
[1770147144654,75.33459124,99.854,99.795,140.4482]
[1770147144855,75.33459124,99.883,99.807,140.4319]
[1770147145056,75.33459124,99.878,99.777,140.4737]
[1770147145455,75.33459124,99.863,99.765,140.4899]
[1770147145757,75.33459124,99.849,99.785,140.4622]
[1770147145957,140.3247,99.884,99.819,140.4147]
[1770147145958,75.33459124,99.884,99.819,140.4147]
[1770147146162,75.33459124,99.955,99.872,140.3403]
[1770147146359,75.33459124,99.955,99.876,140.3343]
[1770147146662,75.33459124,99.955,99.874,140.3371]
[1770147146964,75.33459124,100.0,99.911,140.2845]
[1770147147154,140.1756,99.99,99.876,140.3346]
[1770147147353,75.33459124,99.979,99.889,140.3158]
[1770147147556,75.33459124,100.02,99.937,140.2489]
[1770147147756,75.33459124,100.02,99.948,140.2338]
[1770147147958,75.33459124,100.0,99.897,140.3051]
[1770147148160,34.00145557,100.04,99.978,140.1916]
[1770147148387,140.0439,100.09,99.978,0.53746585]
[1770147148562,280.0162,100.11,100.0,140.1472]
[1770147148756,140.0651,100.07,99.966,140.2079]
[1770147148953,171.25696921,100.09,99.984,140.1829]
[1770147149155,140.0201,100.11,99.975,3.75813722]
[1770147149463,139.9663,100.14,100.02,3.75813722]
[1770147149857,140.0213,100.1,99.988,3.75813722]
[1770147150160,140.0367,100.09,100.02,3.75813722]
[1770147150364,73.45552263,100.08,99.96,3.75813722]
[1770147150564,242.76757973,100.06,99.96,3.75813722]
[1770147150860,140.147,100.01,99.917,7.73756143]
[1770147151162,140.147,100.01,99.858,7.73756143]
[1770147151163,140.1823,99.985,99.858,7.73756143]
[1770147151365,140.2309,99.951,99.858,7.73756143]
[1770147151565,140.2204,99.958,99.858,7.73756143]
[1770147151862,71.46581052,99.992,99.866,7.73756143]
[1770147152064,140.178,99.988,99.866,7.73756143]
[1770147152264,140.2265,99.954,99.866,7.73756143]
[1770147152567,140.2545,99.934,99.866,7.73756143]
[1770147152762,70.84980306,99.936,99.812,8.96957634]
[1770147152962,70.84980306,99.936,99.816,8.96957634]
[1770147153169,140.2545,99.934,99.816,8.96957634]
[1770147153366,140.2828,99.914,99.816,8.96957634]
[1770147153670,140.3261,99.883,99.744,8.96957634]
[1770147154166,140.3256,99.883,99.751,8.96957634]
[1770147154369,140.3424,99.871,99.751,8.96957634]
[1770147154762,9.0202,99.891,99.731,140.5388]
[1770147154763,210.07038363,99.892,99.755,19.49335395]
[1770147155068,140.3503,99.866,99.755,16.16339902]
[1770147155263,140.3491,99.866,99.755,16.16339902]
[1770147155471,140.369,99.852,99.755,16.16339902]
[1770147155864,140.3544,99.863,99.755,16.16339902]
[1770147156165,140.2953,99.905,99.755,140.5046]
[1770147156360,140.3473,99.868,99.734,140.5347]
[1770147156566,140.3362,99.876,99.745,140.5179]
[1770147156865,31.22196921,99.88,99.73,31.22196921]
[1770147156866,140.3371,99.875,99.748,31.80021735]
[1770147157063,140.3371,99.875,99.73,31.22196921]
[1770147157064,140.3817,99.843,99.752,31.80021735]
[1770147157264,140.3816,99.843,99.752,31.80021735]
[1770147157463,140.3847,99.841,99.752,31.80021735]
[1770147157658,140.3726,99.85,99.752,31.80021735]
[1770147157864,140.3522,99.864,99.752,31.80021735]
[1770147157865,399.98,99.871,99.752,31.80021735]
[1770147158066,140.3043,99.898,99.764,31.80021735]
[1770147158261,140.3202,99.887,99.768,31.80021735]
[1770147158463,140.3545,99.863,99.768,31.80021735]
[1770147158683,140.3735,99.849,99.768,31.80021735]
[1770147158963,140.392,99.836,99.768,31.80021735]
[1770147159559,140.4196,99.816,99.685,140.6036]
[1770147159763,140.4196,99.816,99.696,140.5876]
[1770147159973,140.3984,99.831,99.712,140.5655]
[1770147160171,140.3984,99.831,99.702,140.5796]
[1770147160364,140.3984,99.831,99.712,140.5653]
[1770147160562,140.4132,99.821,99.702,140.5796]
[1770147161271,140.4041,99.827,99.707,140.5725]
[1770147161462,140.4082,99.824,99.712,140.5652]
[1770147161664,140.396,99.833,99.721,45.50066942]
[1770147161868,140.4285,99.81,99.721,45.50066942]
[1770147162174,140.3861,99.84,99.727,45.50066942]
[1770147162470,140.4029,99.828,99.732,45.50066942]
[1770147162673,140.3874,99.839,99.732,45.50066942]
[1770147163068,140.3453,99.869,99.755,47.35801552]
[1770147163271,140.3519,99.864,99.768,47.35801552]
[1770147163471,140.341,99.872,99.768,47.35801552]
[1770147163765,69.75748363,99.878,99.768,47.35801552]
[1770147163766,140.3926,99.836,99.768,47.35801552]
[1770147163969,140.4117,99.822,99.768,47.35801552]
[1770147164164,140.3926,99.836,99.768,47.35801552]
[1770147164363,140.3714,99.851,99.709,140.5694]
[1770147164364,140.4168,99.818,99.71,47.35801552]
[1770147164867,140.4259,99.812,99.71,47.35801552]
[1770147165270,140.3978,99.832,99.71,47.35801552]
[1770147165271,140.4562,99.79,99.71,47.35801552]
[1770147165466,140.4128,99.821,99.71,47.35801552]
[1770147165665,140.3998,99.83,99.726,47.60831729]
[1770147165866,140.4516,99.794,99.726,47.60831729]
[1770147166070,140.4551,99.791,99.726,47.60831729]
[1770147166274,140.4455,99.798,99.726,47.60831729]
[1770147166471,140.4601,99.788,99.726,47.60831729]
[1770147166663,140.4601,99.788,99.685,49.10431182]
[1770147167372,140.4455,99.798,99.703,49.10431182]
[1770147168076,140.4717,99.779,99.703,49.10431182]
[1770147168376,140.4933,99.764,99.671,49.10431182]
[1770147168578,140.5077,99.754,99.671,49.10431182]
[1770147168872,140.5077,99.754,99.661,140.6364]
[1770147168873,140.4755,99.777,99.676,49.4419582]
[1770147169073,149.5173,99.769,99.676,49.4419582]
[1770147169276,140.4914,99.765,99.676,49.4419582]
[1770147169471,140.5076,99.754,99.676,49.4419582]
[1770147169671,140.5112,99.751,99.676,49.4419582]
[1770147169975,140.5123,99.75,99.676,49.4419582]
[1770147170274,9.035,99.727,99.648,49.4419582]
[1770147170468,140.5199,99.745,99.648,49.4419582]
[1770147170670,140.5679,99.711,99.621,49.57626214]
[1770147170877,140.5748,99.706,99.621,49.57626214]
[1770147171071,71.04754996,99.714,99.621,49.57626214]
[1770147171274,140.5736,99.707,99.621,49.57626214]
[1770147171569,20.78755136,99.73,99.576,140.7567]
[1770147171570,71.04754996,99.675,99.591,49.57626214]
[1770147171776,20.78755136,99.7,99.602,49.57626214]
[1770147171978,140.5831,99.7,99.618,9.0448]
[1770147172272,140.5809,99.702,99.617,49.57626214]
[1770147172470,140.6045,99.685,99.617,49.57626214]
[1770147172773,140.6045,99.685,99.575,140.7588]
[1770147172774,140.6354,99.663,99.564,49.21018806]
[1770147172976,9.0423,99.647,99.565,2.51167842]
[1770147173178,71.04754996,99.659,99.569,140.7674]
[1770147173365,71.04754996,99.659,99.573,140.7619]
[1770147173567,9.0385,99.688,99.597,49.21340827]
[1770147173766,9.0385,99.688,99.592,140.7347]
[1770147173767,71.43701106,99.693,99.611,49.21340827]
[1770147173975,71.43701106,99.693,99.612,140.7069]
[1770147174170,149.5928,99.719,99.628,49.21340827]
[1770147174568,9.0365,99.711,99.63,9.0437]
[1770147174774,149.6048,99.711,99.628,49.21340827]
[1770147175074,140.5798,99.703,99.628,49.21340827]
[1770147175672,9.0372,99.703,99.629,2.51081364]
[1770147175872,9.0372,99.703,99.63,2.51081364]
[1770147176068,9.0417,99.653,99.567,49.22502078]
[1770147176268,149.6914,99.653,99.568,2.51148309]
[1770147176468,149.6914,99.653,99.569,51.73650387]
[1770147176673,149.6914,99.653,99.57,2.51148309]
[1770147176873,9.0429,99.64,99.57,2.51148309]
[1770147177178,71.43701106,99.658,99.57,2.51148309]
[1770147177370,9.0416,99.655,99.576,9.0486]
[1770147177572,140.6921,99.623,99.577,2.51148309]
[1770147177772,140.682,99.63,99.542,47.22350602]
[1770147177972,9.0445,99.622,99.543,11.5642274]
[1770147178274,9.0445,99.622,99.544,2.5125274]
[1770147178473,9.0445,99.622,99.545,2.5125274]
[1770147178674,9.0457,99.609,99.546,2.5125274]
[1770147178873,9.0457,99.609,99.547,2.5125274]
[1770147179079,9.0457,99.609,99.548,2.5125274]
[1770147179278,71.43701106,99.614,99.549,2.5125274]
[1770147179579,71.43701106,99.614,99.517,45.35779699]
[1770147179580,71.43701106,99.614,99.55,2.5125274]
[1770147179784,9.0458,99.608,99.551,2.5125274]
[1770147179975,9.0458,99.608,99.552,2.5125274]
[1770147180177,9.0458,99.608,99.553,2.5125274]
[1770147180380,9.0472,99.593,99.554,2.5125274]
[1770147180583,9.0472,99.593,99.517,45.35779699]
[1770147180875,9.0464,99.601,99.517,45.35779699]
[1770147181077,140.6868,99.627,99.541,45.47910264]
[1770147181284,140.7385,99.59,99.511,45.47910264]
[1770147181478,140.7428,99.587,99.511,45.47910264]
[1770147181682,9.0485,99.578,99.511,45.47910264]
[1770147181978,71.43701106,99.603,99.517,45.47910264]
[1770147182182,9.0448,99.619,99.526,140.8278]
[1770147182377,9.0448,99.619,99.499,140.8662]
[1770147182378,140.7314,99.595,99.529,45.47910264]
[1770147182572,140.7366,99.591,99.529,45.47910264]
[1770147182778,71.43701106,99.616,99.529,45.47910264]
[1770147182978,71.43701106,99.616,99.538,140.8113]
[1770147183180,9.0484,99.58,99.512,45.88526415]
[1770147183382,140.7571,99.577,99.486,45.88526415]
[1770147183579,140.7571,99.577,99.485,140.8854]
[1770147183580,212.17941106,99.587,99.492,54.94146415]
[1770147183783,140.7488,99.583,99.492,54.94146415]
[1770147183983,9.0495,99.568,99.492,54.94146415]
[1770147184684,9.0478,99.586,99.509,47.40634531]
[1770147185177,9.0466,99.599,99.523,47.40634531]
[1770147185483,140.6858,99.627,99.534,47.40634531]
[1770147185484,140.6988,99.618,99.534,47.40634531]
[1770147185687,140.708,99.612,99.534,47.40634531]
[1770147185881,140.688,99.626,99.534,47.40634531]
[1770147186079,9.0418,99.652,99.583,9.048]
[1770147186285,140.6091,99.682,99.563,140.7752]
[1770147186286,140.6326,99.665,99.587,47.40634531]
[1770147186486,212.05561106,99.675,99.587,47.40634531]
[1770147186487,140.6372,99.662,99.587,47.40634531]
[1770147186682,9.0427,99.642,99.587,47.40634531]
[1770147186886,140.6664,99.641,99.559,48.67853892]
[1770147187179,140.6411,99.659,99.566,48.67853892]
[1770147187378,71.43701106,99.661,99.571,48.67853892]
[1770147187586,140.6439,99.657,99.571,48.67853892]
[1770147187884,140.5665,99.712,99.627,48.67853892]
[1770147188084,140.5716,99.708,99.627,48.67853892]
[1770147188284,140.5576,99.718,99.627,48.67853892]
[1770147188285,140.5889,99.696,99.627,48.67853892]
[1770147188479,140.5785,99.704,99.61,48.48827541]
[1770147188678,562.1204,99.738,99.624,48.48827541]
[1770147188679,140.5643,99.714,99.624,48.48827541]
[1770147188883,71.43701106,99.783,99.624,48.48827541]
[1770147189082,140.504,99.756,99.669,48.48827541]
[1770147189287,140.5099,99.752,99.669,48.48827541]
[1770147189480,140.5323,99.736,99.627,48.48827541]
[1770147189676,140.5323,99.736,99.636,48.48827541]
[1770147189881,140.5249,99.742,99.642,48.48827541]
[1770147190189,140.4855,99.769,99.592,400.64]
[1770147190190,140.4838,99.771,99.675,140.6179]
[1770147190387,71.43701106,99.77,99.675,140.6179]
[1770147190581,140.4884,99.767,99.676,45.19009633]
[1770147190783,140.5059,99.755,99.676,45.19009633]
[1770147190980,140.5006,99.759,99.676,45.19009633]
[1770147191183,71.43701106,99.762,99.677,140.6151]
[1770147191384,140.499,99.76,99.676,45.19009633]
[1770147191586,71.43701106,99.762,99.676,185.80619633]
[1770147191786,71.43701106,99.762,99.68,140.6097]
[1770147192091,140.4667,99.783,99.68,140.6097]
[1770147192092,71.43701106,99.788,99.696,45.19009633]
[1770147192295,71.43701106,99.846,99.754,140.506]
[1770147192488,140.3996,99.831,99.755,2.50745896]
[1770147192688,140.4137,99.821,99.756,2.50745896]
[1770147192887,71.43701106,99.811,99.757,2.50745896]
[1770147193096,71.43701106,99.803,99.702,45.07452535]
[1770147193290,71.43701106,99.803,99.716,140.5597]
[1770147193495,71.43701106,99.801,99.706,185.64832535]
[1770147193694,140.447,99.797,99.706,45.07452535]
[1770147193894,211.90161106,99.784,99.706,45.07452535]
[1770147194095,140.4925,99.765,99.68,45.07452535]
[1770147194493,140.5075,99.754,99.68,45.07452535]
[1770147194691,140.5075,99.754,99.65,140.6531]
[1770147194893,140.5075,99.754,99.653,41.91539961]
[1770147195188,20.78755136,99.76,99.674,140.6193]
[1770147195390,71.43701106,99.829,99.67,41.91539961]
[1770147195595,71.43701106,99.822,99.736,140.5315]
[1770147195793,71.43701106,99.822,99.733,41.91539961]
[1770147195989,140.4193,99.817,99.733,41.91539961]
[1770147196195,71.43701106,99.822,99.734,140.5338]
[1770147196496,71.43701106,99.85,99.753,42.28403979]
[1770147196792,140.3968,99.832,99.753,42.28403979]
[1770147196995,140.3991,99.831,99.753,42.28403979]
[1770147197199,140.3896,99.838,99.753,42.28403979]
[1770147197396,140.404,99.827,99.753,42.28403979]
[1770147197592,71.43701106,99.834,99.753,42.28403979]
[1770147197797,140.3984,99.831,99.753,42.28403979]
[1770147198001,71.43701106,99.83,99.732,140.5362]
[1770147198299,140.4214,99.815,99.726,42.28403979]
[1770147198498,140.4214,99.815,99.688,140.5985]
[1770147198499,32.85333973,99.83,99.805,140.4337]
[1770147198699,20.78755136,99.9,99.805,9.0279]
[1770147198898,140.328,99.881,99.785,140.4618]
[1770147199098,140.328,99.881,99.784,61.59785689]
[1770147199300,149.3491,99.881,99.784,61.59785689]
[1770147199499,140.3612,99.858,99.784,61.59785689]
[1770147199699,140.3543,99.863,99.784,61.59785689]
[1770147199906,140.3683,99.853,99.757,74.15941519]
[1770147200208,140.3997,99.83,99.757,74.15941519]
[1770147200500,140.4152,99.819,99.723,74.15941519]
[1770147200702,72.57883177,99.88,99.761,72.10088273]
[1770147200903,72.57883177,99.856,99.761,72.10088273]
[1770147201105,72.57883177,99.883,99.78,212.57008273]
[1770147201302,72.57883177,99.882,99.793,140.4513]
[1770147201498,72.57883177,99.882,99.793,212.55218273]
[1770147201704,140.3013,99.9,99.733,8.61910235]
[1770147201705,72.57883177,99.951,99.86,140.3574]
[1770147202103,72.57883177,99.951,99.874,9.0216]
[1770147202305,72.57883177,99.951,99.86,72.10088273]
[1770147202506,140.1822,99.985,99.85,140.3714]
[1770147202507,212.72053177,100.02,99.921,72.10088273]
[1770147202810,72.57883177,100.01,99.921,72.10088273]
[1770147203004,140.1612,100.0,99.921,72.10088273]
[1770147203204,140.1755,99.99,99.895,72.10088273]
[1770147203406,140.2004,99.972,99.895,72.10088273]
[1770147203601,140.2143,99.962,99.866,72.10088273]
[1770147203803,140.2253,99.955,99.866,72.10088273]
[1770147204098,72.57883177,99.961,99.861,140.3556]
[1770147204304,72.57883177,99.961,99.866,140.3481]
[1770147204602,140.2321,99.95,99.864,72.10088273]
[1770147204997,140.2222,99.957,99.864,72.10088273]
[1770147205198,20.78755136,99.97,99.865,2.50455396]
[1770147205199,140.2476,99.939,99.865,2.50455396]
[1770147205399,20.78755136,99.97,99.795,72.10088273]
[1770147205400,140.3012,99.901,99.795,72.10088273]
[1770147205599,140.3144,99.891,99.795,72.10088273]
[1770147206008,72.57883177,99.931,99.828,72.10088273]
[1770147206211,72.57883177,99.988,99.883,72.10088273]
[1770147206406,72.57883177,99.985,99.885,140.3216]
[1770147206610,72.57883177,99.985,99.888,140.3169]
[1770147207001,72.57883177,99.985,99.886,72.10088273]
[1770147207405,212.77813177,99.973,99.886,72.10088273]
[1770147207609,72.57883177,99.966,99.867,140.3475]
[1770147207804,140.189,99.98,99.897,72.10088273]
[1770147208005,140.1967,99.975,99.876,140.3349]
[1770147208203,72.57883177,99.95,99.855,140.3642]
[1770147208410,72.57883177,99.95,99.877,46.13]
[1770147208611,140.2024,99.971,99.877,46.13]
[1770147208910,140.2336,99.949,99.877,46.13]
[1770147209111,140.2191,99.959,99.877,46.13]
[1770147209307,72.57883177,99.943,99.877,43.35803818]
[1770147209508,72.57883177,99.973,99.877,43.35803818]
[1770147209706,72.57883177,99.969,99.877,43.35803818]
[1770147209906,72.57883177,99.969,99.878,212.43198273]
[1770147210104,72.57883177,99.969,99.888,140.3171]
[1770147210303,72.57883177,99.969,99.878,221.45328273]
[1770147210510,72.57883177,99.969,99.878,72.10088273]
[1770147211008,72.57883177,99.929,99.83,140.3991]
[1770147211215,72.57883177,99.992,99.879,72.10088273]
[1770147211416,140.1617,100.0,99.878,140.3312]
[1770147211417,72.57883177,99.988,99.885,140.3221]
[1770147211615,72.57883177,99.988,99.904,140.2944]
[1770147212515,72.57883177,99.988,99.909,140.2881]
[1770147212907,72.57883177,99.988,99.899,72.10088273]
[1770147213516,72.57883177,99.984,99.875,9.0215]
[1770147213714,140.1615,100.0,99.871,72.10088273]
[1770147213715,72.57883177,99.96,99.871,72.10088273]
[1770147214016,140.2405,99.944,99.876,0.28]
[1770147214211,72.57883177,99.95,99.876,0.28]
[1770147214607,72.57883177,99.968,99.876,0.28]
[1770147214820,212.79403177,99.962,99.876,0.28]
[1770147215116,140.2009,99.972,99.876,0.28]
[1770147215117,9.0141,99.959,99.876,0.28]
[1770147215317,539.8569,100.01,99.903,140.2962]
[1770147215318,72.57883177,100.0,99.903,140.2962]
[1770147215518,72.57883177,100.0,99.905,140.2935]
[1770147215715,81.58933177,99.999,99.907,9.0186]
[1770147216114,72.57883177,99.978,99.885,140.3223]
[1770147216423,81.59113177,99.978,99.892,140.3116]
[1770147217018,72.57883177,99.978,99.896,149.326]
[1770147217418,72.57883177,99.978,99.896,9.0196]
[1770147217620,72.57883177,99.974,99.879,81.12208273]
[1770147217924,72.57883177,99.974,99.876,0.28]
[1770147217925,72.57883177,99.941,99.876,0.28]
[1770147218322,72.57883177,99.934,99.876,0.28]
[1770147218518,72.57883177,99.993,99.901,72.10088273]
[1770147218820,22.52863518,100.02,99.95,140.2309]
[1770147219020,22.52863518,100.02,99.94,140.245]
[1770147219021,20.78755136,100.02,99.94,140.245]
[1770147219215,20.78755136,100.02,99.937,9.0159]
[1770147219520,140.1477,100.01,99.901,72.10088273]
[1770147219729,140.1689,99.995,99.901,72.10088273]
[1770147220117,9.0116,99.986,99.901,72.10088273]
[1770147220325,9.0116,99.986,99.902,140.2979]
[1770147220521,149.1717,100.0,99.902,149.317]
[1770147220825,20.78755136,100.01,99.919,140.2735]
[1770147221019,20.78755136,100.01,99.888,140.3169]
[1770147221020,72.57883177,100.04,99.954,140.2252]
[1770147221221,72.57883177,100.04,99.947,72.10088273]
[1770147221426,352.79243177,100.04,99.947,72.10088273]
[1770147221626,352.79243177,100.04,99.916,140.2785]
[1770147221627,212.71293177,100.02,99.924,9.0172]
[1770147222022,212.71293177,100.02,99.919,72.10088273]
[1770147222023,140.1619,100.0,99.919,72.10088273]
[1770147222222,140.1619,100.0,99.823,18.0526]
[1770147222223,233.51398313,100.01,99.916,140.2787]
[1770147222622,20.78755136,100.01,99.94,140.244]
[1770147222819,20.78755136,100.01,99.933,140.2545]
[1770147222820,72.57883177,100.03,99.947,140.2348]
[1770147223223,72.57883177,100.03,99.947,149.2499]
[1770147223420,140.077,100.06,99.929,140.2601]
[1770147223421,212.65583177,100.06,99.961,140.2152]
[1770147223631,212.65583177,100.06,99.95,140.2299]
[1770147223632,72.57883177,100.04,99.957,140.22]
[1770147223930,72.57883177,100.04,99.957,9.0141]
[1770147224153,8.724e-05,100.06,99.996,72.10088273]
[1770147224426,72.57883177,100.09,100.01,140.1452]
[1770147224622,243.60742351,100.12,100.01,212.24608273]
[1770147224819,103.61202351,100.12,100.02,140.1322]
[1770147225022,252.60762351,100.12,100.02,9.0081]
[1770147225233,140.0121,100.11,100.01,72.10088273]
[1770147225525,140.0121,100.11,100.01,221.25488273]
[1770147225526,149.0128,100.11,100.01,221.25488273]
[1770147225722,243.60892351,100.12,100.02,72.10088273]
[1770147225926,140.0217,100.1,100.02,72.10088273]
[1770147226124,212.61423177,100.09,99.994,9.0108]
[1770147226330,212.62083177,100.09,99.996,72.10088273]
[1770147226631,140.0531,100.08,99.996,72.10088273]
[1770147226831,140.0531,100.08,99.947,140.2341]
[1770147226832,171.13869174,100.04,99.965,72.10088273]
[1770147227035,31.03319174,100.04,99.965,72.10088273]
[1770147227334,81.58413177,100.06,99.978,9.0122]
[1770147227729,81.58413177,100.06,99.965,72.10088273]
[1770147227730,221.66163177,100.06,99.965,72.10088273]
[1770147228035,221.66163177,100.06,99.937,72.10088273]
[1770147228036,171.13829174,100.04,99.937,72.10088273]
[1770147228226,171.13829174,100.04,99.926,140.2645]
[1770147228227,103.61202351,100.04,99.945,140.2376]
[1770147228427,103.61202351,100.04,99.96,9.0139]
[1770147228924,140.1191,100.03,99.946,9.0151]
[1770147229126,31.03319174,99.98,99.907,72.10088273]
[1770147229328,72.57883177,99.968,99.876,72.38088273]
[1770147229534,72.57883177,99.968,99.877,72.10088273]
[1770147229731,72.57883177,99.968,99.881,140.3273]
[1770147230143,72.57883177,99.968,99.882,74.60514288]
[1770147230431,171.26519174,99.95,99.876,0.28]
[1770147230636,31.03319174,99.95,99.876,0.28]
[1770147230830,350.87686777,100.01,99.897,71.81596661]
[1770147231131,350.87686777,100.01,99.878,280.6622]
[1770147231132,140.1635,99.999,99.9,71.81596661]
[1770147231324,140.1814,99.986,99.902,71.81596661]
[1770147231530,140.195,99.976,99.902,71.81596661]
[1770147232033,140.2113,99.965,99.874,71.81596661]
[1770147232236,149.2075,99.976,99.877,74.32059429]
[1770147232432,149.2075,99.976,99.878,2.50462768]
[1770147232624,149.2075,99.976,99.879,74.32059429]
[1770147232832,140.21,99.966,99.88,2.50462768]
[1770147233140,140.2241,99.955,99.881,2.50462768]
[1770147233332,140.2241,99.955,99.882,2.50462768]
[1770147233528,31.03319174,99.95,99.883,2.50462768]
[1770147233732,140.2544,99.934,99.851,71.23544692]
[1770147233929,140.2476,99.939,99.851,71.23544692]
[1770147233930,140.2758,99.919,99.851,71.23544692]
[1770147234131,140.2758,99.919,99.852,2.50516723]
[1770147234337,140.3106,99.894,99.82,71.23544692]
[1770147234536,140.298,99.903,99.82,71.23544692]
[1770147234839,140.2905,99.908,99.82,71.23544692]
[1770147235432,149.3185,99.902,99.82,71.23544692]
[1770147235834,140.344,99.87,99.792,71.23544692]
[1770147236036,31.03319174,99.89,99.792,71.23544692]
[1770147236037,140.3285,99.881,99.792,71.23544692]
[1770147236531,149.3496,99.881,99.792,71.23544692]
[1770147237235,140.3505,99.865,99.765,71.23544692]
[1770147237437,140.3553,99.862,99.765,71.23544692]
[1770147237826,140.3905,99.837,99.765,71.23544692]
[1770147238029,140.3997,99.83,99.765,71.23544692]
[1770147238433,140.3895,99.838,99.737,71.23544692]
[1770147238634,140.4217,99.815,99.737,71.23544692]
[1770147239138,9.027,99.815,99.737,71.23544692]
[1770147239342,31.03319174,99.86,99.748,71.23544692]
[1770147239538,9.0246,99.843,99.75,9.0329]
[1770147239841,31.03319174,99.86,99.751,71.23544692]
[1770147240336,31.03319174,99.86,99.774,140.4772]
[1770147240527,140.3383,99.874,99.775,71.23544692]
[1770147240732,140.3383,99.874,99.78,71.23544692]
[1770147241036,140.3383,99.874,99.739,140.5277]
[1770147241037,140.4097,99.823,99.748,71.23544692]
[1770147241240,73.39833113,99.811,99.719,71.23544692]
[1770147241531,140.4505,99.794,99.696,71.23544692]
[1770147241740,140.4977,99.761,99.696,71.23544692]
[1770147241934,399.64,99.766,99.696,71.23544692]
[1770147242134,140.497,99.761,99.696,71.23544692]
[1770147242434,140.497,99.761,99.631,140.6799]
[1770147242435,9.0316,99.765,99.682,9.039]
[1770147242939,9.0327,99.752,99.672,9.0399]
[1770147243140,399.64,99.766,99.672,9.0399]
[1770147243336,399.64,99.766,99.684,140.6053]
[1770147243539,31.03319174,99.77,99.684,211.84074692]
[1770147243736,140.5241,99.742,99.656,71.23544692]
[1770147243935,140.5449,99.727,99.656,71.23544692]
[1770147244134,31.03319174,99.74,99.656,71.23544692]
[1770147244331,31.03319174,99.74,99.646,140.6578]
[1770147244332,140.5096,99.752,99.663,71.23544692]
[1770147244635,140.5209,99.744,99.663,71.23544692]
[1770147244840,140.5321,99.736,99.663,71.23544692]
[1770147245039,399.76,99.743,99.663,71.23544692]
[1770147245641,399.76,99.743,99.626,140.6864]
[1770147245642,399.76,99.743,99.65,211.88754692]
[1770147245839,140.5265,99.74,99.65,71.23544692]
[1770147246035,140.5507,99.723,99.65,71.23544692]
[1770147246235,9.0358,99.718,99.65,71.23544692]
[1770147246437,31.03319174,99.74,99.626,140.6864]
[1770147246438,31.03319174,99.74,99.651,73.74579595]
[1770147246633,73.39833113,99.742,99.657,71.23544692]
[1770147246834,73.39833113,99.742,99.658,2.51034903]
[1770147247040,9.0337,99.741,99.659,11.55144903]
[1770147247240,9.0337,99.741,99.659,9.0411]
[1770147247545,9.0337,99.741,99.615,140.7022]
[1770147247546,9.0307,99.775,99.693,71.23544692]
[1770147247736,140.5107,99.752,99.666,71.23544692]
[1770147247940,140.5132,99.75,99.666,71.23544692]
[1770147248241,399.92,99.762,99.666,71.23544692]
[1770147248242,9.0338,99.741,99.666,71.23544692]
[1770147248437,73.39833113,99.738,99.649,71.23544692]
[1770147249043,9.0341,99.737,99.65,9.0419]
[1770147249445,9.0364,99.712,99.625,9.0442]
[1770147249641,73.39833113,99.719,99.625,80.27964692]
[1770147249835,171.58869174,99.72,99.613,140.7054]
[1770147249836,73.39833113,99.703,99.613,140.7054]
[1770147250034,73.39833113,99.703,99.615,140.7024]
[1770147250739,73.39833113,99.703,99.614,71.23544692]
[1770147250740,9.0376,99.698,99.614,71.23544692]
[1770147250942,73.39833113,99.697,99.614,71.23544692]
[1770147251437,9.0383,99.691,99.614,71.23544692]